Workbook

Sheet Instructions

Sheet Meta data_sheet
A1: Ambient Monitoring Station | B1: Details | D1: Ambient Monitoring Results | E1: Details
A2: Location | B2: Breeza | D2: PM2.5 monitoring start (dd/mm/yyyy hh:mm) | E2: 2019-10-01
A3: Easting | B3: =VLOOKUP($B$2,'Meta data_lookup'!$A$2:$D$5,2,FALSE) -> 237993 | D3: PM2.5 monitoring end | E3: 2019-11-01
A4: Northing | B4: =VLOOKUP($B$2,'Meta data_lookup'!$A$2:$D$5,3,FALSE) -> 6542606 | D4: PM2.5 monitoring period (h) | E4: =(E3-E2)*24 -> 744
A5: Site elevation (m) | B5: =VLOOKUP($B$2,'Meta data_lookup'!$A$2:$D$5,4,FALSE) -> ND | D5: Number of valid PM2.5 results | E5: =COUNTIF('Raw data_sheet'!G2:G745,"Valid") -> 709
A6: Description of surrounding land use | B6: Agriculture | D6: Proportion of valid PM2.5 results (%) | E6: =E5/E4 -> 0.9529569892
A7: Typical sources impacting on the site | B7: Agriculture/Gravel roads | D7: PM10 monitoring start (dd/mm/yyyy hh:mm) | E7: 2019-10-01
A8: Site compliance with AS/NZS 3580.1.1:2007 | B8: Yes | D8: PM10 monitoring end | E8: 2019-11-01
A9: PM2.5 method compliance with AS/NZS 3580.9.13:2013 | B9: Yes | D9: PM10 monitoring period (h) | E9: =(E8-E7)*24 -> 744
A10: PM2.5 instrument make | B10: Thermo | D10: Number of valid PM10 results | E10: =COUNTIF('Raw data_sheet'!J2:J745,"Valid") -> 709
A11: PM2.5 instrument model | B11: 1405DF | D11: Proportion of valid PM10 results (%) | E11: =E10/E9 -> 0.9529569892
A12: PM2.5 instrument intake height (m) | B12: 3.5
A13: PM10 method compliance with AS 3580.9.8-2008 | B13: No*
A14: PM10 instrument make | B14: Thermo
A15: PM10 instrument model | B15: 1405DF
A16: PM10 instrument intake height (m) | B16: 3.5
A17: *The 1405DF TEOM used at this site measures PM10 indirectly rather than directly. The unit does however meet the intent of AS 3580.9.8-2008, and this method has been accredited by the USEPA. It is considered scientifically robust and is used extensively throughout NSW with EPA's knowledge and informal acceptance.

Sheet Meta data_lookup
A1: Location | B1: Easting | C1: Northing | D1: Site elevation (m)
A2: Maules Creek | B2: 225302 | C2: 6623037 | D2: ND
A3: Breeza | B3: 237993 | C3: 6542606 | D3: ND
A4: Will-gai | B4: 231804 | C4: 6596392 | D4: ND
A5: Werris Creek | B5: 276783 | C5: 6528734 | D5: ND

Sheet Raw data_sheet
A1: Year | B1: Month | C1: Day | D1: Hour | E1: Date and time | F1: PM2.5_hourly | G1: PM2.5_Data_Status | H1: PM2.5_24hr_rolling_average | I1: PM10_hourly | J1: PM10_Data_Status | K1: PM10_24hr_rolling_average | L1: Cause of data invalidity, if applicable | M1: Detailed comments | N1: PM2.5_hourly_valid_plot | O1: PM2.5_24hr_rolling_ave_valid_plot | P1: PM10_hourly_valid_plot | Q1: PM10_24hr_rolling_ave_valid_plot | R1: PM10_hourly_valid_plot_series | S1: PM10_24hr_rolling_average_valid_plot_series | T1: PM2.5_hourly_valid_plot_series | U1: PM2.5_24hr_rolling_average_valid_plot_series
A2: 2019 | B2: 10 | C2: 1 | D2: 0 | E2: =DATE(A2,B2,C2)+TIME(D2,0,0) -> 43739 | F2: 2.91 | G2: Valid | H2: 6.51 | I2: 7.17 | J2: Valid | K2: 19.18 | N2: =IF(G2="Valid", F2, NA()) -> 2.91 | O2: =IF(G2="Valid", H2, NA()) -> 6.51 | P2: =IF(J2="Valid", I2, NA()) -> 7.17 | Q2: =IF(J2="Valid", K2, NA()) -> 19.18 | R2: 7.17 | S2: 19.18 | T2: 2.91 | U2: 6.51
A3: =A2 -> 2019 | B3: =B2 -> 10 | C3: =C2 -> 1 | D3: =IF(D2=23,0,D2+1) -> 1 | E3: =E2+0.0416666666666666 -> 43739.04167 | F3: 3.71 | G3: Valid | H3: 6.62 | I3: 8.61 | J3: Valid | K3: 18.91 | N3: 3.71 | O3: 6.62 | P3: 8.61 | Q3: 18.91 | R3: 8.61 | S3: 18.91 | T3: 3.71 | U3: 6.62
A4: =A3 -> 2019 | B4: =B3 -> 10 | C4: 1 | D4: =IF(D3=23,0,D3+1) -> 2 | E4: =E3+0.0416666666666666 -> 43739.08333 | F4: 4.67 | G4: Valid | H4: 6.58 | I4: 8.67 | J4: Valid | K4: 18.47 | N4: 4.67 | O4: 6.58 | P4: 8.67 | Q4: 18.47 | R4: 8.67 | S4: 18.47 | T4: 4.67 | U4: 6.58
A5: 2019 | B5: 10 | C5: 1 | D5: 3 | E5: 43739.125 | F5: -1.68 | G5: Valid | H5: 6.34 | I5: 2.43 | J5: Valid | K5: 17.76 | N5: -1.68 | O5: 6.34 | P5: 2.43 | Q5: 17.76 | R5: 2.43 | S5: 17.76 | T5: -1.68 | U5: 6.34
A6: 2019 | B6: 10 | C6: 1 | D6: 4 | E6: 43739.16667 | F6: 0.72 | G6: Valid | H6: 6.12 | I6: 5.05 | J6: Valid | K6: 16.93 | N6: 0.72 | O6: 6.12 | P6: 5.05 | Q6: 16.93 | R6: 5.05 | S6: 16.93 | T6: 0.72 | U6: 6.12
A7: 2019 | B7: 10 | C7: 1 | D7: 5 | E7: 43739.20833 | F7: 5.5 | G7: Valid | H7: 6.25 | I7: 9.13 | J7: Valid | K7: 16.67 | N7: 5.5 | O7: 6.25 | P7: 9.13 | Q7: 16.67 | R7: 9.13 | S7: 16.67 | T7: 5.5 | U7: 6.25
A8: 2019 | B8: 10 | C8: 1 | D8: 6 | E8: 43739.25 | F8: 2.07 | G8: Valid | H8: 6.29 | I8: 6.01 | J8: Valid | K8: 16.34 | N8: 2.07 | O8: 6.29 | P8: 6.01 | Q8: 16.34 | R8: 6.01 | S8: 16.34 | T8: 2.07 | U8: 6.29
A9: 2019 | B9: 10 | C9: 1 | D9: 7 | E9: 43739.29167 | F9: 5.11 | G9: Valid | H9: 6.3 | I9: 7.69 | J9: Valid | K9: 15.88 | N9: 5.11 | O9: 6.3 | P9: 7.69 | Q9: 15.88 | R9: 7.69 | S9: 15.88 | T9: 5.11 | U9: 6.3
A10: 2019 | B10: 10 | C10: 1 | D10: 8 | E10: 43739.33333 | F10: 4.05 | G10: Valid | H10: 6.19 | I10: 8.13 | J10: Valid | K10: 15.24 | N10: 4.05 | O10: 6.19 | P10: 8.13 | Q10: 15.24 | R10: 8.13 | S10: 15.24 | T10: 4.05 | U10: 6.19
A11: 2019 | B11: 10 | C11: 1 | D11: 9 | E11: 43739.375 | F11: 1.43 | G11: Valid | H11: 5.9 | I11: 5.81 | J11: Valid | K11: 14.3 | N11: 1.43 | O11: 5.9 | P11: 5.81 | Q11: 14.3 | R11: 5.81 | S11: 14.3 | T11: 1.43 | U11: 5.9
A12: 2019 | B12: 10 | C12: 1 | D12: 10 | E12: 43739.41667 | F12: 1.12 | G12: Valid | H12: 5.58 | I12: 5.5 | J12: Valid | K12: 13.57 | N12: 1.12 | O12: 5.58 | P12: 5.5 | Q12: 13.57 | R12: 5.5 | S12: 13.57 | T12: 1.12 | U12: 5.58
A13: 2019 | B13: 10 | C13: 1 | D13: 11 | E13: 43739.45833 | F13: 6.22 | G13: Valid | H13: 5.41 | I13: 9.94 | J13: Valid | K13: 12.91 | N13: 6.22 | O13: 5.41 | P13: 9.94 | Q13: 12.91 | R13: 9.94 | S13: 12.91 | T13: 6.22 | U13: 5.41
A14: 2019 | B14: 10 | C14: 1 | D14: 12 | E14: 43739.5 | F14: 7.42 | G14: Valid | H14: 5.41 | I14: 13.69 | J14: Valid | K14: 12.69 | N14: 7.42 | O14: 5.41 | P14: 13.69 | Q14: 12.69 | R14: 13.69 | S14: 12.69 | T14: 7.42 | U14: 5.41
A15: 2019 | B15: 10 | C15: 1 | D15: 13 | E15: 43739.54167 | F15: 5.37 | G15: Valid | H15: 5.3 | I15: 12.83 | J15: Valid | K15: 12.43 | N15: 5.37 | O15: 5.3 | P15: 12.83 | Q15: 12.43 | R15: 12.83 | S15: 12.43 | T15: 5.37 | U15: 5.3
A16: 2019 | B16: 10 | C16: 1 | D16: 14 | E16: 43739.58333 | F16: 7.18 | G16: Valid | H16: 5.14 | I16: 14.57 | J16: Valid | K16: 12.14 | N16: 7.18 | O16: 5.14 | P16: 14.57 | Q16: 12.14 | R16: 14.57 | S16: 12.14 | T16: 7.18 | U16: 5.14
A17: 2019 | B17: 10 | C17: 1 | D17: 15 | E17: 43739.625 | F17: 8.73 | G17: Valid | H17: 5.06 | I17: 14.53 | J17: Valid | K17: 11.79 | N17: 8.73 | O17: 5.06 | P17: 14.53 | Q17: 11.79 | R17: 14.53 | S17: 11.79 | T17: 8.73 | U17: 5.06
A18: 2019 | B18: 10 | C18: 1 | D18: 16 | E18: 43739.66667 | F18: 7.49 | G18: Valid | H18: 5.11 | I18: 12.61 | J18: Valid | K18: 11.64 | N18: 7.49 | O18: 5.11 | P18: 12.61 | Q18: 11.64 | R18: 12.61 | S18: 11.64 | T18: 7.49 | U18: 5.11
A19: 2019 | B19: 10 | C19: 1 | D19: 17 | E19: 43739.70833 | F19: 4.12 | G19: Valid | H19: 5.04 | I19: 10.63 | J19: Valid | K19: 11.4 | N19: 4.12 | O19: 5.04 | P19: 10.63 | Q19: 11.4 | R19: 10.63 | S19: 11.4 | T19: 4.12 | U19: 5.04
A20: 2019 | B20: 10 | C20: 1 | D20: 18 | E20: 43739.75 | F20: 8.65 | G20: Valid | H20: 4.96 | I20: 12.95 | J20: Valid | K20: 11.01 | N20: 8.65 | O20: 4.96 | P20: 12.95 | Q20: 11.01 | R20: 12.95 | S20: 11.01 | T20: 8.65 | U20: 4.96
A21: 2019 | B21: 10 | C21: 1 | D21: 19 | E21: 43739.79167 | F21: 7.12 | G21: Valid | H21: 4.86 | I21: 12.63 | J21: Valid | K21: 10.52 | N21: 7.12 | O21: 4.86 | P21: 12.63 | Q21: 10.52 | R21: 12.63 | S21: 10.52 | T21: 7.12 | U21: 4.86
A22: 2019 | B22: 10 | C22: 1 | D22: 20 | E22: 43739.83333 | F22: 6.45 | G22: Valid | H22: 4.79 | I22: 20.57 | J22: Valid | K22: 10.5 | N22: 6.45 | O22: 4.79 | P22: 20.57 | Q22: 10.5 | R22: 20.57 | S22: 10.5 | T22: 6.45 | U22: 4.79
A23: 2019 | B23: 10 | C23: 1 | D23: 21 | E23: 43739.875 | F23: 3.05 | G23: Valid | H23: 4.69 | I23: 13.44 | J23: Valid | K23: 10.39 | N23: 3.05 | O23: 4.69 | P23: 13.44 | Q23: 10.39 | R23: 13.44 | S23: 10.39 | T23: 3.05 | U23: 4.69
A24: 2019 | B24: 10 | C24: 1 | D24: 22 | E24: 43739.91667 | F24: 5.59 | G24: Valid | H24: 4.62 | I24: 14.06 | J24: Valid | K24: 10.35 | N24: 5.59 | O24: 4.62 | P24: 14.06 | Q24: 10.35 | R24: 14.06 | S24: 10.35 | T24: 5.59 | U24: 4.62
A25: 2019 | B25: =B24 -> 10 | C25: =C24 -> 1 | D25: 23 | E25: 43739.95833 | F25: 7.38 | G25: Valid | H25: 4.77 | I25: 16.57 | J25: Valid | K25: 10.55 | N25: 7.38 | O25: 4.77 | P25: 16.57 | Q25: 10.55 | R25: 16.57 | S25: 10.55 | T25: 7.38 | U25: 4.77
A26: 2019 | B26: =B25 -> 10 | C26: =C2+1 -> 2 | D26: 0 | E26: 43740 | F26: 6.43 | G26: Valid | H26: 4.91 | I26: 13.38 | J26: Valid | K26: 10.81 | N26: 6.43 | O26: 4.91 | P26: 13.38 | Q26: 10.81 | R26: 13.38 | S26: 10.81 | T26: 6.43 | U26: 4.91
A27: 2019 | B27: =B26 -> 10 | C27: =C3+1 -> 2 | D27: 1 | E27: 43740.04167 | F27: 7.85 | G27: Valid | H27: 5.09 | I27: 15.37 | J27: Valid | K27: 11.09 | N27: 7.85 | O27: 5.09 | P27: 15.37 | Q27: 11.09 | R27: 15.37 | S27: 11.09 | T27: 7.85 | U27: 5.09
A28: 2019 | B28: 10 | C28: 2 | D28: 2 | E28: 43740.08333 | F28: 4.71 | G28: Valid | H28: 5.09 | I28: 11.53 | J28: Valid | K28: 11.21 | N28: 4.71 | O28: 5.09 | P28: 11.53 | Q28: 11.21 | R28: 11.53 | S28: 11.21 | T28: 4.71 | U28: 5.09
A29: 2019 | B29: 10 | C29: 2 | D29: 3 | E29: 43740.125 | F29: 3.59 | G29: Valid | H29: 5.31 | I29: 11.31 | J29: Valid | K29: 11.58 | N29: 3.59 | O29: 5.31 | P29: 11.31 | Q29: 11.58 | R29: 11.31 | S29: 11.58 | T29: 3.59 | U29: 5.31
A30: 2019 | B30: 10 | C30: 2 | D30: 4 | E30: 43740.16667 | F30: 5.8 | G30: Valid | H30: 5.52 | I30: 11.28 | J30: Valid | K30: 11.84 | N30: 5.8 | O30: 5.52 | P30: 11.28 | Q30: 11.84 | R30: 11.28 | S30: 11.84 | T30: 5.8 | U30: 5.52
A31: 2019 | B31: 10 | C31: 2 | D31: 5 | E31: 43740.20833 | F31: 3.76 | G31: Valid | H31: 5.45 | I31: 7.97 | J31: Valid | K31: 11.79 | N31: 3.76 | O31: 5.45 | P31: 7.97 | Q31: 11.79 | R31: 7.97 | S31: 11.79 | T31: 3.76 | U31: 5.45
A32: 2019 | B32: 10 | C32: 2 | D32: 6 | E32: 43740.25 | F32: 5.94 | G32: Valid | H32: 5.61 | I32: 10.98 | J32: Valid | K32: 12 | N32: 5.94 | O32: 5.61 | P32: 10.98 | Q32: 12 | R32: 10.98 | S32: 12 | T32: 5.94 | U32: 5.61
A33: 2019 | B33: 10 | C33: 2 | D33: 7 | E33: 43740.29167 | F33: 0.71 | G33: Valid | H33: 5.42 | I33: 10.04 | J33: Valid | K33: 12.1 | N33: 0.71 | O33: 5.42 | P33: 10.04 | Q33: 12.1 | R33: 10.04 | S33: 12.1 | T33: 0.71 | U33: 5.42
A34: 2019 | B34: 10 | C34: 2 | D34: 8 | E34: 43740.33333 | F34: 5.05 | G34: Valid | H34: 5.47 | I34: 17.59 | J34: Valid | K34: 12.49 | N34: 5.05 | O34: 5.47 | P34: 17.59 | Q34: 12.49 | R34: 17.59 | S34: 12.49 | T34: 5.05 | U34: 5.47
A35: 2019 | B35: 10 | C35: 2 | D35: 9 | E35: 43740.375 | F35: 5.85 | G35: Valid | H35: 5.65 | I35: 14.76 | J35: Valid | K35: 12.86 | N35: 5.85 | O35: 5.65 | P35: 14.76 | Q35: 12.86 | R35: 14.76 | S35: 12.86 | T35: 5.85 | U35: 5.65
A36: 2019 | B36: 10 | C36: 2 | D36: 10 | E36: 43740.41667 | F36: 9.85 | G36: Valid | H36: 6.01 | I36: 20.32 | J36: Valid | K36: 13.48 | N36: 9.85 | O36: 6.01 | P36: 20.32 | Q36: 13.48 | R36: 20.32 | S36: 13.48 | T36: 9.85 | U36: 6.01
A37: 2019 | B37: 10 | C37: 2 | D37: 11 | E37: 43740.45833 | F37: 11.08 | G37: Valid | H37: 6.22 | I37: 19.99 | J37: Valid | K37: 13.9 | N37: 11.08 | O37: 6.22 | P37: 19.99 | Q37: 13.9 | R37: 19.99 | S37: 13.9 | T37: 11.08 | U37: 6.22
A38: 2019 | B38: 10 | C38: 2 | D38: 12 | E38: 43740.5 | F38: 11.92 | G38: Valid | H38: 6.4 | I38: 21.28 | J38: Valid | K38: 14.22 | N38: 11.92 | O38: 6.4 | P38: 21.28 | Q38: 14.22 | R38: 21.28 | S38: 14.22 | T38: 11.92 | U38: 6.4
A39: 2019 | B39: 10 | C39: 2 | D39: 13 | E39: 43740.54167 | F39: 7.88 | G39: Valid | H39: 6.51 | I39: 15.98 | J39: Valid | K39: 14.35 | N39: 7.88 | O39: 6.51 | P39: 15.98 | Q39: 14.35 | R39: 15.98 | S39: 14.35 | T39: 7.88 | U39: 6.51
A40: 2019 | B40: 10 | C40: 2 | D40: 14 | E40: 43740.58333 | F40: 6.73 | G40: Valid | H40: 6.49 | I40: 12.76 | J40: Valid | K40: 14.27 | N40: 6.73 | O40: 6.49 | P40: 12.76 | Q40: 14.27 | R40: 12.76 | S40: 14.27 | T40: 6.73 | U40: 6.49
A41: 2019 | B41: 10 | C41: 2 | D41: 15 | E41: 43740.625 | F41: 6.08 | G41: Valid | H41: 6.38 | I41: 12.61 | J41: Valid | K41: 14.19 | N41: 6.08 | O41: 6.38 | P41: 12.61 | Q41: 14.19 | R41: 12.61 | S41: 14.19 | T41: 6.08 | U41: 6.38
A42: 2019 | B42: 10 | C42: 2 | D42: 16 | E42: 43740.66667 | F42: 7.53 | G42: Valid | H42: 6.38 | I42: 13.51 | J42: Valid | K42: 14.23 | N42: 7.53 | O42: 6.38 | P42: 13.51 | Q42: 14.23 | R42: 13.51 | S42: 14.23 | T42: 7.53 | U42: 6.38
A43: 2019 | B43: 10 | C43: 2 | D43: 17 | E43: 43740.70833 | F43: 7.57 | G43: Valid | H43: 6.52 | I43: 13.95 | J43: Valid | K43: 14.37 | N43: 7.57 | O43: 6.52 | P43: 13.95 | Q43: 14.37 | R43: 13.95 | S43: 14.37 | T43: 7.57 | U43: 6.52
A44: 2019 | B44: 10 | C44: 2 | D44: 18 | E44: 43740.75 | F44: 5.57 | G44: Valid | H44: 6.4 | I44: 11.96 | J44: Valid | K44: 14.33 | N44: 5.57 | O44: 6.4 | P44: 11.96 | Q44: 14.33 | R44: 11.96 | S44: 14.33 | T44: 5.57 | U44: 6.4
A45: 2019 | B45: 10 | C45: 2 | D45: 19 | E45: 43740.79167 | F45: 6.44 | G45: Valid | H45: 6.37 | I45: 19.01 | J45: Valid | K45: 14.59 | N45: 6.44 | O45: 6.37 | P45: 19.01 | Q45: 14.59 | R45: 19.01 | S45: 14.59 | T45: 6.44 | U45: 6.37
A46: 2019 | B46: 10 | C46: 2 | D46: 20 | E46: 43740.83333 | F46: 7.04 | G46: Valid | H46: 6.39 | I46: 22.12 | J46: Valid | K46: 14.66 | N46: 7.04 | O46: 6.39 | P46: 22.12 | Q46: 14.66 | R46: 22.12 | S46: 14.66 | T46: 7.04 | U46: 6.39
A47: 2019 | B47: 10 | C47: 2 | D47: 21 | E47: 43740.875 | F47: 8.07 | G47: Valid | H47: 6.6 | I47: 18.11 | J47: Valid | K47: 14.85 | N47: 8.07 | O47: 6.6 | P47: 18.11 | Q47: 14.85 | R47: 18.11 | S47: 14.85 | T47: 8.07 | U47: 6.6
A48: 2019 | B48: 10 | C48: 2 | D48: 22 | E48: 43740.91667 | F48: 8.67 | G48: Valid | H48: 6.73 | I48: 22.21 | J48: Valid | K48: 15.19 | N48: 8.67 | O48: 6.73 | P48: 22.21 | Q48: 15.19 | R48: 22.21 | S48: 15.19 | T48: 8.67 | U48: 6.73
A49: 2019 | B49: 10 | C49: 2 | D49: 23 | E49: 43740.95833 | F49: 3.24 | G49: Valid | H49: 6.56 | I49: 18.77 | J49: Valid | K49: 15.28 | N49: 3.24 | O49: 6.56 | P49: 18.77 | Q49: 15.28 | R49: 18.77 | S49: 15.28 | T49: 3.24 | U49: 6.56
A50: 2019 | B50: 10 | C50: 3 | D50: 0 | E50: 43741 | F50: 3.24 | G50: Valid | H50: 6.42 | I50: 15.13 | J50: Valid | K50: 15.36 | N50: 3.24 | O50: 6.42 | P50: 15.13 | Q50: 15.36 | R50: 15.13 | S50: 15.36 | T50: 3.24 | U50: 6.42
A51: 2019 | B51: 10 | C51: 3 | D51: 1 | E51: 43741.04167 | F51: 4.72 | G51: Valid | H51: 6.29 | I51: 18.97 | J51: Valid | K51: 15.51 | N51: 4.72 | O51: 6.29 | P51: 18.97 | Q51: 15.51 | R51: 18.97 | S51: 15.51 | T51: 4.72 | U51: 6.29
A52: 2019 | B52: 10 | C52: 3 | D52: 2 | E52: 43741.08333 | F52: 7.49 | G52: Valid | H52: 6.41 | I52: 20.4 | J52: Valid | K52: 15.88 | N52: 7.49 | O52: 6.41 | P52: 20.4 | Q52: 15.88 | R52: 20.4 | S52: 15.88 | T52: 7.49 | U52: 6.41
A53: 2019 | B53: 10 | C53: 3 | D53: 3 | E53: 43741.125 | F53: 5.92 | G53: Valid | H53: 6.51 | I53: 19.21 | J53: Valid | K53: 16.2 | N53: 5.92 | O53: 6.51 | P53: 19.21 | Q53: 16.2 | R53: 19.21 | S53: 16.2 | T53: 5.92 | U53: 6.51
A54: 2019 | B54: 10 | C54: 3 | D54: 4 | E54: 43741.16667 | F54: 4.7 | G54: Valid | H54: 6.46 | I54: 20.67 | J54: Valid | K54: 16.6 | N54: 4.7 | O54: 6.46 | P54: 20.67 | Q54: 16.6 | R54: 20.67 | S54: 16.6 | T54: 4.7 | U54: 6.46
A55: 2019 | B55: 10 | C55: 3 | D55: 5 | E55: 43741.20833 | F55: 9.51 | G55: Valid | H55: 6.7 | I55: 23.26 | J55: Valid | K55: 17.23 | N55: 9.51 | O55: 6.7 | P55: 23.26 | Q55: 17.23 | R55: 23.26 | S55: 17.23 | T55: 9.51 | U55: 6.7
A56: 2019 | B56: 10 | C56: 3 | D56: 6 | E56: 43741.25 | F56: 4.17 | G56: Valid | H56: 6.63 | I56: 18.72 | J56: Valid | K56: 17.56 | N56: 4.17 | O56: 6.63 | P56: 18.72 | Q56: 17.56 | R56: 18.72 | S56: 17.56 | T56: 4.17 | U56: 6.63
A57: 2019 | B57: 10 | C57: 3 | D57: 7 | E57: 43741.29167 | F57: 6.23 | G57: Valid | H57: 6.86 | I57: 24.86 | J57: Valid | K57: 18.17 | N57: 6.23 | O57: 6.86 | P57: 24.86 | Q57: 18.17 | R57: 24.86 | S57: 18.17 | T57: 6.23 | U57: 6.86
A58: 2019 | B58: 10 | C58: 3 | D58: 8 | E58: 43741.33333 | F58: 10.53 | G58: Valid | H58: 7.08 | I58: 31.15 | J58: Valid | K58: 18.74 | N58: 10.53 | O58: 7.08 | P58: 31.15 | Q58: 18.74 | R58: 31.15 | S58: 18.74 | T58: 10.53 | U58: 7.08
A59: 2019 | B59: 10 | C59: 3 | D59: 9 | E59: 43741.375 | F59: 9.7 | G59: Valid | H59: 7.25 | I59: 26.19 | J59: Valid | K59: 19.21 | N59: 9.7 | O59: 7.25 | P59: 26.19 | Q59: 19.21 | R59: 26.19 | S59: 19.21 | T59: 9.7 | U59: 7.25
A60: 2019 | B60: 10 | C60: 3 | D60: 10 | E60: 43741.41667 | F60: 10.06 | G60: Valid | H60: 7.25 | I60: 23.52 | J60: Valid | K60: 19.35 | N60: 10.06 | O60: 7.25 | P60: 23.52 | Q60: 19.35 | R60: 23.52 | S60: 19.35 | T60: 10.06 | U60: 7.25
A61: 2019 | B61: 10 | C61: 3 | D61: 11 | E61: 43741.45833 | F61: 11.86 | G61: Valid | H61: 7.29 | I61: 24.69 | J61: Valid | K61: 19.54 | N61: 11.86 | O61: 7.29 | P61: 24.69 | Q61: 19.54 | R61: 24.69 | S61: 19.54 | T61: 11.86 | U61: 7.29
A62: 2019 | B62: 10 | C62: 3 | D62: 12 | E62: 43741.5 | F62: 6.59 | G62: Valid | H62: 7.06 | I62: 18.76 | J62: Valid | K62: 19.44 | N62: 6.59 | O62: 7.06 | P62: 18.76 | Q62: 19.44 | R62: 18.76 | S62: 19.44 | T62: 6.59 | U62: 7.06
A63: 2019 | B63: 10 | C63: 3 | D63: 13 | E63: 43741.54167 | F63: 4.85 | G63: Valid | H63: 6.94 | I63: 15.92 | J63: Valid | K63: 19.44 | N63: 4.85 | O63: 6.94 | P63: 15.92 | Q63: 19.44 | R63: 15.92 | S63: 19.44 | T63: 4.85 | U63: 6.94
A64: 2019 | B64: 10 | C64: 3 | D64: 14 | E64: 43741.58333 | F64: 3.27 | G64: Valid | H64: 6.79 | I64: 13.64 | J64: Valid | K64: 19.47 | N64: 3.27 | O64: 6.79 | P64: 13.64 | Q64: 19.47 | R64: 13.64 | S64: 19.47 | T64: 3.27 | U64: 6.79
A65: 2019 | B65: 10 | C65: 3 | D65: 15 | E65: 43741.625 | F65: 9.72 | G65: Valid | H65: 6.95 | I65: 20.14 | J65: Valid | K65: 19.79 | N65: 9.72 | O65: 6.95 | P65: 20.14 | Q65: 19.79 | R65: 20.14 | S65: 19.79 | T65: 9.72 | U65: 6.95
A66: 2019 | B66: 10 | C66: 3 | D66: 16 | E66: 43741.66667 | F66: 6.93 | G66: Valid | H66: 6.92 | I66: 16.72 | J66: Valid | K66: 19.92 | N66: =IF(G66="Valid", F66, NA()) -> 6.93 | O66: =IF(G66="Valid", H66, NA()) -> 6.92 | P66: =IF(J66="Valid", I66, NA()) -> 16.72 | Q66: =IF(J66="Valid", K66, NA()) -> 19.92 | R66: 16.72 | S66: 19.92 | T66: 6.93 | U66: 6.92
A67: 2019 | B67: 10 | C67: 3 | D67: 17 | E67: 43741.70833 | F67: 8.78 | G67: Valid | H67: 6.97 | I67: 19.04 | J67: Valid | K67: 20.13 | N67: 8.78 | O67: 6.97 | P67: 19.04 | Q67: 20.13 | R67: 19.04 | S67: 20.13 | T67: 8.78 | U67: 6.97
A68: =A67 -> 2019 | B68: 10 | C68: 3 | D68: =IF(D67=23,0,D67+1) -> 18 | E68: =E67+0.0416666666666666 -> 43741.75 | F68: 8.43 | G68: Valid | H68: 7.09 | I68: 27.52 | J68: Valid | K68: 20.78 | N68: 8.43 | O68: 7.09 | P68: 27.52 | Q68: 20.78 | R68: 27.52 | S68: 20.78 | T68: 8.43 | U68: 7.09
A69: 2019 | B69: 10 | C69: 3 | D69: 19 | E69: 43741.79167 | F69: 5.33 | G69: Valid | H69: 7.04 | I69: 27.99 | J69: Valid | K69: 21.15 | N69: 5.33 | O69: 7.04 | P69: 27.99 | Q69: 21.15 | R69: 27.99 | S69: 21.15 | T69: 5.33 | U69: 7.04
A70: 2019 | B70: 10 | C70: 3 | D70: 20 | E70: 43741.83333 | F70: 6.83 | G70: Valid | H70: 7.04 | I70: 23.4 | J70: Valid | K70: 21.21 | N70: 6.83 | O70: 7.04 | P70: 23.4 | Q70: 21.21 | R70: 23.4 | S70: 21.21 | T70: 6.83 | U70: 7.04
A71: 2019 | B71: 10 | C71: 3 | D71: 21 | E71: 43741.875 | F71: 4.95 | G71: Valid | H71: 6.91 | I71: 15.96 | J71: Valid | K71: 21.12 | N71: 4.95 | O71: 6.91 | P71: 15.96 | Q71: 21.12 | R71: 15.96 | S71: 21.12 | T71: 4.95 | U71: 6.91
A72: 2019 | B72: 10 | C72: 3 | D72: 22 | E72: 43741.91667 | F72: 5.37 | G72: Valid | H72: 6.77 | I72: 17.83 | J72: Valid | K72: 20.94 | N72: 5.37 | O72: 6.77 | P72: 17.83 | Q72: 20.94 | R72: 17.83 | S72: 20.94 | T72: 5.37 | U72: 6.77
A73: 2019 | B73: 10 | C73: 3 | D73: 23 | E73: 43741.95833 | F73: 7.74 | G73: Valid | H73: 6.96 | I73: 22.94 | J73: Valid | K73: 21.11 | N73: 7.74 | O73: 6.96 | P73: 22.94 | Q73: 21.11 | R73: 22.94 | S73: 21.11 | T73: 7.74 | U73: 6.96
A74: 2019 | B74: 10 | C74: 4 | D74: 0 | E74: 43742 | F74: 10.09 | G74: Valid | H74: 7.24 | I74: 26.31 | J74: Valid | K74: 21.58 | N74: 10.09 | O74: 7.24 | P74: 26.31 | Q74: 21.58 | R74: 26.31 | S74: 21.58 | T74: 10.09 | U74: 7.24
A75: 2019 | B75: 10 | C75: 4 | D75: 1 | E75: 43742.04167 | F75: 4.54 | G75: Valid | H75: 7.23 | I75: 21.94 | J75: Valid | K75: 21.7 | N75: 4.54 | O75: 7.23 | P75: 21.94 | Q75: 21.7 | R75: 21.94 | S75: 21.7 | T75: 4.54 | U75: 7.23
A76: 2019 | B76: 10 | C76: 4 | D76: 2 | E76: 43742.08333 | F76: 6.87 | G76: Valid | H76: 7.21 | I76: 27.92 | J76: Valid | K76: 22.01 | N76: 6.87 | O76: 7.21 | P76: 27.92 | Q76: 22.01 | R76: 27.92 | S76: 22.01 | T76: 6.87 | U76: 7.21
A77: 2019 | B77: 10 | C77: 4 | D77: 3 | E77: 43742.125 | F77: 4.9 | G77: Valid | H77: 7.16 | I77: 20.38 | J77: Valid | K77: 22.06 | N77: 4.9 | O77: 7.16 | P77: 20.38 | Q77: 22.06 | R77: 20.38 | S77: 22.06 | T77: 4.9 | U77: 7.16
A78: 2019 | B78: 10 | C78: 4 | D78: 4 | E78: 43742.16667 | F78: 6.7 | G78: Valid | H78: 7.25 | I78: 19.98 | J78: Valid | K78: 22.03 | N78: 6.7 | O78: 7.25 | P78: 19.98 | Q78: 22.03 | R78: 19.98 | S78: 22.03 | T78: 6.7 | U78: 7.25
A79: 2019 | B79: 10 | C79: 4 | D79: 5 | E79: 43742.20833 | F79: 13.48 | G79: Valid | H79: 7.41 | I79: 30.03 | J79: Valid | K79: 22.31 | N79: 13.48 | O79: 7.41 | P79: 30.03 | Q79: 22.31 | R79: 30.03 | S79: 22.31 | T79: 13.48 | U79: 7.41
A80: 2019 | B80: 10 | C80: 4 | D80: 6 | E80: 43742.25 | F80: 9.11 | G80: Valid | H80: 7.62 | I80: 32.38 | J80: Valid | K80: 22.88 | N80: 9.11 | O80: 7.62 | P80: 32.38 | Q80: 22.88 | R80: 32.38 | S80: 22.88 | T80: 9.11 | U80: 7.62
A81: 2019 | B81: 10 | C81: 4 | D81: 7 | E81: 43742.29167 | F81: 9.27 | G81: Valid | H81: 7.75 | I81: 24.9 | J81: Valid | K81: 22.89 | N81: 9.27 | O81: 7.75 | P81: 24.9 | Q81: 22.89 | R81: 24.9 | S81: 22.89 | T81: 9.27 | U81: 7.75
A82: 2019 | B82: 10 | C82: 4 | D82: 8 | E82: 43742.33333 | F82: 8.7 | G82: Valid | H82: 7.67 | I82: 26.42 | J82: Valid | K82: 22.69 | N82: 8.7 | O82: 7.67 | P82: 26.42 | Q82: 22.69 | R82: 26.42 | S82: 22.69 | T82: 8.7 | U82: 7.67
A83: 2019 | B83: 10 | C83: 4 | D83: 9 | E83: 43742.375 | F83: 9.22 | G83: Valid | H83: 7.65 | I83: 25.66 | J83: Valid | K83: 22.67 | N83: 9.22 | O83: 7.65 | P83: 25.66 | Q83: 22.67 | R83: 25.66 | S83: 22.67 | T83: 9.22 | U83: 7.65
A84: 2019 | B84: 10 | C84: 4 | D84: 10 | E84: 43742.41667 | F84: 8.22 | G84: Valid | H84: 7.57 | I84: 27.5 | J84: Valid | K84: 22.83 | N84: 8.22 | O84: 7.57 | P84: 27.5 | Q84: 22.83 | R84: 27.5 | S84: 22.83 | T84: 8.22 | U84: 7.57
A85: 2019 | B85: 10 | C85: 4 | D85: 11 | E85: 43742.45833 | F85: 4.52 | G85: Valid | H85: 7.27 | I85: 16.78 | J85: Valid | K85: 22.5 | N85: 4.52 | O85: 7.27 | P85: 16.78 | Q85: 22.5 | R85: 16.78 | S85: 22.5 | T85: 4.52 | U85: 7.27
A86: 2019 | B86: 10 | C86: 4 | D86: 12 | E86: 43742.5 | F86: 5.89 | G86: Valid | H86: 7.24 | I86: 22.09 | J86: Valid | K86: 22.64 | N86: 5.89 | O86: 7.24 | P86: 22.09 | Q86: 22.64 | R86: 22.09 | S86: 22.64 | T86: 5.89 | U86: 7.24
A87: 2019 | B87: 10 | C87: 4 | D87: 13 | E87: 43742.54167 | F87: 5.98 | G87: Valid | H87: 7.29 | I87: 18.22 | J87: Valid | K87: 22.74 | N87: 5.98 | O87: 7.29 | P87: 18.22 | Q87: 22.74 | R87: 18.22 | S87: 22.74 | T87: 5.98 | U87: 7.29
A88: 2019 | B88: 10 | C88: 4 | D88: 14 | E88: 43742.58333 | F88: 6.28 | G88: Valid | H88: 7.41 | I88: 33.27 | J88: Valid | K88: 23.56 | N88: 6.28 | O88: 7.41 | P88: 33.27 | Q88: 23.56 | R88: 33.27 | S88: 23.56 | T88: 6.28 | U88: 7.41
A89: 2019 | B89: 10 | C89: 4 | D89: 15 | E89: 43742.625 | F89: 11.5 | G89: Valid | H89: 7.48 | I89: 32.4 | J89: Valid | K89: 24.07 | N89: 11.5 | O89: 7.48 | P89: 32.4 | Q89: 24.07 | R89: 32.4 | S89: 24.07 | T89: 11.5 | U89: 7.48
A90: 2019 | B90: 10 | C90: 4 | D90: 16 | E90: 43742.66667 | F90: 5.71 | G90: Valid | H90: 7.43 | I90: 26.82 | J90: Valid | K90: 24.49 | N90: 5.71 | O90: 7.43 | P90: 26.82 | Q90: 24.49 | R90: 26.82 | S90: 24.49 | T90: 5.71 | U90: 7.43
A91: 2019 | B91: =B90 -> 10 | C91: =C67+1 -> 4 | D91: 17 | E91: 43742.70833 | F91: 8.08 | G91: Valid | H91: 7.4 | I91: 28.75 | J91: Valid | K91: 24.89 | N91: 8.08 | O91: 7.4 | P91: 28.75 | Q91: 24.89 | R91: 28.75 | S91: 24.89 | T91: 8.08 | U91: 7.4
A92: 2019 | B92: 10 | C92: 4 | D92: 18 | E92: 43742.75 | F92: 8.35 | G92: Valid | H92: 7.4 | I92: 31.42 | J92: Valid | K92: 25.05 | N92: 8.35 | O92: 7.4 | P92: 31.42 | Q92: 25.05 | R92: 31.42 | S92: 25.05 | T92: 8.35 | U92: 7.4
A93: 2019 | B93: 10 | C93: 4 | D93: 19 | E93: 43742.79167 | F93: 6.65 | G93: Valid | H93: 7.46 | I93: 28.18 | J93: Valid | K93: 25.06 | N93: 6.65 | O93: 7.46 | P93: 28.18 | Q93: 25.06 | R93: 28.18 | S93: 25.06 | T93: 6.65 | U93: 7.46
A94: 2019 | B94: 10 | C94: 4 | D94: 20 | E94: 43742.83333 | F94: 9.7 | G94: Valid | H94: 7.58 | I94: 42.49 | J94: Valid | K94: 25.86 | N94: 9.7 | O94: 7.58 | P94: 42.49 | Q94: 25.86 | R94: 42.49 | S94: 25.86 | T94: 9.7 | U94: 7.58
A95: 2019 | B95: 10 | C95: 4 | D95: 21 | E95: 43742.875 | F95: 5.25 | G95: Valid | H95: 7.59 | I95: 28.33 | J95: Valid | K95: 26.37 | N95: 5.25 | O95: 7.59 | P95: 28.33 | Q95: 26.37 | R95: 28.33 | S95: 26.37 | T95: 5.25 | U95: 7.59
A96: 2019 | B96: 10 | C96: 4 | D96: 22 | E96: 43742.91667 | F96: 4.81 | G96: Valid | H96: 7.57 | I96: 25.47 | J96: Valid | K96: 26.69 | N96: 4.81 | O96: 7.57 | P96: 25.47 | Q96: 26.69 | R96: 25.47 | S96: 26.69 | T96: 4.81 | U96: 7.57
A97: 2019 | B97: 10 | C97: 4 | D97: 23 | E97: 43742.95833 | F97: 3.65 | G97: Valid | H97: 7.39 | I97: 26.82 | J97: Valid | K97: 26.85 | N97: 3.65 | O97: 7.39 | P97: 26.82 | Q97: 26.85 | R97: 26.82 | S97: 26.85 | T97: 3.65 | U97: 7.39
A98: 2019 | B98: 10 | C98: 5 | D98: 0 | E98: 43743 | F98: 5.81 | G98: Valid | H98: 7.22 | I98: 30.36 | J98: Valid | K98: 27.02 | N98: 5.81 | O98: 7.22 | P98: 30.36 | Q98: 27.02 | R98: 30.36 | S98: 27.02 | T98: 5.81 | U98: 7.22
A99: 2019 | B99: 10 | C99: 5 | D99: 1 | E99: 43743.04167 | F99: 6.54 | G99: Valid | H99: 7.3 | I99: 28.7 | J99: Valid | K99: 27.3 | N99: 6.54 | O99: 7.3 | P99: 28.7 | Q99: 27.3 | R99: 28.7 | S99: 27.3 | T99: 6.54 | U99: 7.3
A100: 2019 | B100: 10 | C100: 5 | D100: 2 | E100: 43743.08333 | F100: 6.87 | G100: Valid | H100: 7.3 | I100: 28.49 | J100: Valid | K100: 27.33 | N100: 6.87 | O100: 7.3 | P100: 28.49 | Q100: 27.33 | R100: 28.49 | S100: 27.33 | T100: 6.87 | U100: 7.3
A101: 2019 | B101: 10 | C101: 5 | D101: 3 | E101: 43743.125 | F101: 3.89 | G101: Valid | H101: 7.26 | I101: 25.1 | J101: Valid | K101: 27.52 | N101: 3.89 | O101: 7.26 | P101: 25.1 | Q101: 27.52 | R101: 25.1 | S101: 27.52 | T101: 3.89 | U101: 7.26
A102: 2019 | B102: 10 | C102: 5 | D102: 4 | E102: 43743.16667 | F102: 7.27 | G102: Valid | H102: 7.28 | I102: 26.39 | J102: Valid | K102: 27.79 | N102: 7.27 | O102: 7.28 | P102: 26.39 | Q102: 27.79 | R102: 26.39 | S102: 27.79 | T102: 7.27 | U102: 7.28
A103: 2019 | B103: 10 | C103: 5 | D103: 5 | E103: 43743.20833 | F103: 16.31 | G103: Valid | H103: 7.4 | I103: 32.44 | J103: Valid | K103: 27.89 | N103: 16.31 | O103: 7.4 | P103: 32.44 | Q103: 27.89 | R103: 32.44 | S103: 27.89 | T103: 16.31 | U103: 7.4
A104: 2019 | B104: 10 | C104: 5 | D104: 6 | E104: 43743.25 | F104: 13.52 | G104: Valid | H104: 7.58 | I104: 27.87 | J104: Valid | K104: 27.7 | N104: 13.52 | O104: 7.58 | P104: 27.87 | Q104: 27.7 | R104: 27.87 | S104: 27.7 | T104: 13.52 | U104: 7.58
A105: 2019 | B105: 10 | C105: 5 | D105: 7 | E105: 43743.29167 | F105: 17.76 | G105: Valid | H105: 7.94 | I105: 34.06 | J105: Valid | K105: 28.08 | N105: 17.76 | O105: 7.94 | P105: 34.06 | Q105: 28.08 | R105: 34.06 | S105: 28.08 | T105: 17.76 | U105: 7.94
A106: 2019 | B106: 10 | C106: 5 | D106: 8 | E106: 43743.33333 | F106: 12.25 | G106: Valid | H106: 8.08 | I106: 28.57 | J106: Valid | K106: 28.17 | N106: 12.25 | O106: 8.08 | P106: 28.57 | Q106: 28.17 | R106: 28.57 | S106: 28.17 | T106: 12.25 | U106: 8.08
A107: 2019 | B107: 10 | C107: 5 | D107: 9 | E107: 43743.375 | F107: 14.89 | G107: Valid | H107: 8.32 | I107: 27.95 | J107: Valid | K107: 28.27 | N107: 14.89 | O107: 8.32 | P107: 27.95 | Q107: 28.27 | R107: 27.95 | S107: 28.27 | T107: 14.89 | U107: 8.32
A108: 2019 | B108: 10 | C108: 5 | D108: 10 | E108: 43743.41667 | F108: 7.8 | G108: Valid | H108: 8.3 | I108: 23.44 | J108: Valid | K108: 28.1 | N108: 7.8 | O108: 8.3 | P108: 23.44 | Q108: 28.1 | R108: 23.44 | S108: 28.1 | T108: 7.8 | U108: 8.3
A109: 2019 | B109: 10 | C109: 5 | D109: 11 | E109: 43743.45833 | F109: 8.01 | G109: Valid | H109: 8.45 | I109: 29.66 | J109: Valid | K109: 28.64 | N109: 8.01 | O109: 8.45 | P109: 29.66 | Q109: 28.64 | R109: 29.66 | S109: 28.64 | T109: 8.01 | U109: 8.45
A110: 2019 | B110: 10 | C110: 5 | D110: 12 | E110: 43743.5 | F110: 7.47 | G110: Valid | H110: 8.51 | I110: 20.64 | J110: Valid | K110: 28.58 | N110: 7.47 | O110: 8.51 | P110: 20.64 | Q110: 28.58 | R110: 20.64 | S110: 28.58 | T110: 7.47 | U110: 8.51
A111: 2019 | B111: 10 | C111: 5 | D111: 13 | E111: 43743.54167 | F111: 13.72 | G111: Valid | H111: 8.84 | I111: 25.23 | J111: Valid | K111: 28.87 | N111: 13.72 | O111: 8.84 | P111: 25.23 | Q111: 28.87 | R111: 25.23 | S111: 28.87 | T111: 13.72 | U111: 8.84
A112: 2019 | B112: 10 | C112: 5 | D112: 14 | E112: 43743.58333 | F112: 12.03 | G112: Valid | H112: 9.08 | I112: 19.85 | J112: Valid | K112: 28.31 | N112: 12.03 | O112: 9.08 | P112: 19.85 | Q112: 28.31 | R112: 19.85 | S112: 28.31 | T112: 12.03 | U112: 9.08
A113: 2019 | B113: 10 | C113: 5 | D113: 15 | E113: 43743.625 | F113: 9.75 | G113: Valid | H113: 9 | I113: 16.35 | J113: Valid | K113: 27.64 | N113: 9.75 | O113: 9 | P113: 16.35 | Q113: 27.64 | R113: 16.35 | S113: 27.64 | T113: 9.75 | U113: 9
A114: 2019 | B114: 10 | C114: 5 | D114: 16 | E114: 43743.66667 | F114: 9.1 | G114: Valid | H114: 9.15 | I114: 18.13 | J114: Valid | K114: 27.28 | N114: 9.1 | O114: 9.15 | P114: 18.13 | Q114: 27.28 | R114: 18.13 | S114: 27.28 | T114: 9.1 | U114: 9.15
A115: 2019 | B115: 10 | C115: 5 | D115: 17 | E115: 43743.70833 | F115: 9.82 | G115: Valid | H115: 9.22 | I115: 20.94 | J115: Valid | K115: 26.95 | N115: 9.82 | O115: 9.22 | P115: 20.94 | Q115: 26.95 | R115: 20.94 | S115: 26.95 | T115: 9.82 | U115: 9.22
A116: 2019 | B116: 10 | C116: 5 | D116: 18 | E116: 43743.75 | F116: 12.02 | G116: Valid | H116: 9.37 | I116: 21.6 | J116: Valid | K116: 26.54 | N116: 12.02 | O116: 9.37 | P116: 21.6 | Q116: 26.54 | R116: 21.6 | S116: 26.54 | T116: 12.02 | U116: 9.37
A117: 2019 | B117: 10 | C117: 5 | D117: 19 | E117: 43743.79167 | F117: 10.55 | G117: Valid | H117: 9.53 | I117: 20.83 | J117: Valid | K117: 26.24 | N117: 10.55 | O117: 9.53 | P117: 20.83 | Q117: 26.24 | R117: 20.83 | S117: 26.24 | T117: 10.55 | U117: 9.53
A118: 2019 | B118: 10 | C118: 5 | D118: 20 | E118: 43743.83333 | F118: 7.29 | G118: Valid | H118: 9.43 | I118: 30.43 | J118: Valid | K118: 25.74 | N118: 7.29 | O118: 9.43 | P118: 30.43 | Q118: 25.74 | R118: 30.43 | S118: 25.74 | T118: 7.29 | U118: 9.43
A119: 2019 | B119: 10 | C119: 5 | D119: 21 | E119: 43743.875 | F119: 6.72 | G119: Valid | H119: 9.49 | I119: 16.42 | J119: Valid | K119: 25.24 | N119: 6.72 | O119: 9.49 | P119: 16.42 | Q119: 25.24 | R119: 16.42 | S119: 25.24 | T119: 6.72 | U119: 9.49
A120: 2019 | B120: 10 | C120: 5 | D120: 22 | E120: 43743.91667 | F120: 3.7 | G120: Valid | H120: 9.45 | I120: 9.44 | J120: Valid | K120: 24.57 | N120: 3.7 | O120: 9.45 | P120: 9.44 | Q120: 24.57 | R120: 9.44 | S120: 24.57 | T120: 3.7 | U120: 9.45
A121: 2019 | B121: 10 | C121: 5 | D121: 23 | E121: 43743.95833 | F121: 4.45 | G121: Valid | H121: 9.48 | I121: 8.1 | J121: Valid | K121: 23.79 | N121: 4.45 | O121: 9.48 | P121: 8.1 | Q121: 23.79 | R121: 8.1 | S121: 23.79 | T121: 4.45 | U121: 9.48
A122: 2019 | B122: 10 | C122: 6 | D122: 0 | E122: 43744 | F122: 5.98 | G122: Valid | H122: 9.49 | I122: 10.78 | J122: Valid | K122: 22.98 | N122: 5.98 | O122: 9.49 | P122: 10.78 | Q122: 22.98 | R122: 10.78 | S122: 22.98 | T122: 5.98 | U122: 9.49
A123: 2019 | B123: 10 | C123: 6 | D123: 1 | E123: 43744.04167 | F123: 6.13 | G123: Valid | H123: 9.47 | I123: 12.63 | J123: Valid | K123: 22.31 | N123: 6.13 | O123: 9.47 | P123: 12.63 | Q123: 22.31 | R123: 12.63 | S123: 22.31 | T123: 6.13 | U123: 9.47
A124: 2019 | B124: 10 | C124: 6 | D124: 2 | E124: 43744.08333 | F124: =NA() ->  | G124: Invalid | H124: =NA() ->  | I124: =NA() ->  | J124: Invalid | K124: =NA() ->  | L124: Pump Failure | M124: Daylight savings time adjustment
A125: 2019 | B125: 10 | C125: 6 | D125: 3 | E125: 43744.125 | F125: 6.49 | G125: Valid | H125: 9.7 | I125: 12.36 | J125: Valid | K125: 21.48 | N125: 6.49 | O125: 9.7 | P125: 12.36 | Q125: 21.48 | R125: 12.36 | S125: 21.48 | T125: 6.49 | U125: 9.7
A126: 2019 | B126: 10 | C126: 6 | D126: 4 | E126: 43744.16667 | F126: 4.96 | G126: Valid | H126: 9.6 | I126: 10.35 | J126: Valid | K126: 20.79 | N126: 4.96 | O126: 9.6 | P126: 10.35 | Q126: 20.79 | R126: 10.35 | S126: 20.79 | T126: 4.96 | U126: 9.6
A127: 2019 | B127: 10 | C127: 6 | D127: 5 | E127: 43744.20833 | F127: 7.49 | G127: Valid | H127: 9.21 | I127: 13.56 | J127: Valid | K127: 19.96 | N127: 7.49 | O127: 9.21 | P127: 13.56 | Q127: 19.96 | R127: 13.56 | S127: 19.96 | T127: 7.49 | U127: 9.21
A128: 2019 | B128: 10 | C128: 6 | D128: 6 | E128: 43744.25 | F128: 3.65 | G128: Valid | H128: 8.78 | I128: 8 | J128: Valid | K128: 19.1 | N128: 3.65 | O128: 8.78 | P128: 8 | Q128: 19.1 | R128: 8 | S128: 19.1 | T128: 3.65 | U128: 8.78
A129: 2019 | B129: 10 | C129: 6 | D129: 7 | E129: 43744.29167 | F129: 3.84 | G129: Valid | H129: 8.18 | I129: 13.62 | J129: Valid | K129: 18.21 | N129: 3.84 | O129: 8.18 | P129: 13.62 | Q129: 18.21 | R129: 13.62 | S129: 18.21 | T129: 3.84 | U129: 8.18
A130: 2019 | B130: 10 | C130: 6 | D130: 8 | E130: 43744.33333 | F130: 4.7 | G130: Valid | H130: 7.85 | I130: 18.23 | J130: Valid | K130: 17.76 | N130: =IF(G130="Valid", F130, NA()) -> 4.7 | O130: =IF(G130="Valid", H130, NA()) -> 7.85 | P130: =IF(J130="Valid", I130, NA()) -> 18.23 | Q130: =IF(J130="Valid", K130, NA()) -> 17.76 | R130: 18.23 | S130: 17.76 | T130: 4.7 | U130: 7.85
A131: 2019 | B131: 10 | C131: 6 | D131: 9 | E131: 43744.375 | F131: 6.91 | G131: Valid | H131: 7.5 | I131: 28.26 | J131: Valid | K131: 17.78 | N131: 6.91 | O131: 7.5 | P131: 28.26 | Q131: 17.78 | R131: 28.26 | S131: 17.78 | T131: 6.91 | U131: 7.5
A132: =A131 -> 2019 | B132: 10 | C132: 6 | D132: =IF(D131=23,0,D131+1) -> 10 | E132: =E131+0.0416666666666666 -> 43744.41667 | F132: 9.44 | G132: Valid | H132: 7.57 | I132: 23.11 | J132: Valid | K132: 17.76 | N132: 9.44 | O132: 7.57 | P132: 23.11 | Q132: 17.76 | R132: 23.11 | S132: 17.76 | T132: 9.44 | U132: 7.57
A133: 2019 | B133: 10 | C133: 6 | D133: 11 | E133: 43744.45833 | F133: 10.74 | G133: Valid | H133: 7.69 | I133: 21.7 | J133: Valid | K133: 17.42 | N133: 10.74 | O133: 7.69 | P133: 21.7 | Q133: 17.42 | R133: 21.7 | S133: 17.42 | T133: 10.74 | U133: 7.69
A134: 2019 | B134: 10 | C134: 6 | D134: 12 | E134: 43744.5 | F134: 12.63 | G134: Valid | H134: 7.92 | I134: 22.63 | J134: Valid | K134: 17.5 | N134: 12.63 | O134: 7.92 | P134: 22.63 | Q134: 17.5 | R134: 22.63 | S134: 17.5 | T134: 12.63 | U134: 7.92
A135: 2019 | B135: 10 | C135: 6 | D135: 13 | E135: 43744.54167 | F135: 12.6 | G135: Valid | H135: 7.87 | I135: 26.71 | J135: Valid | K135: 17.57 | N135: 12.6 | O135: 7.87 | P135: 26.71 | Q135: 17.57 | R135: 26.71 | S135: 17.57 | T135: 12.6 | U135: 7.87
A136: 2019 | B136: 10 | C136: 6 | D136: 14 | E136: 43744.58333 | F136: 15.06 | G136: Valid | H136: 8 | I136: 28.77 | J136: Valid | K136: 17.95 | N136: 15.06 | O136: 8 | P136: 28.77 | Q136: 17.95 | R136: 28.77 | S136: 17.95 | T136: 15.06 | U136: 8
A137: 2019 | B137: 10 | C137: 6 | D137: 15 | E137: 43744.625 | F137: 12.34 | G137: Valid | H137: 8.11 | I137: 26.88 | J137: Valid | K137: 18.41 | N137: 12.34 | O137: 8.11 | P137: 26.88 | Q137: 18.41 | R137: 26.88 | S137: 18.41 | T137: 12.34 | U137: 8.11
A138: 2019 | B138: 10 | C138: 6 | D138: 16 | E138: 43744.66667 | F138: 12.24 | G138: Valid | H138: 8.25 | I138: 29.61 | J138: Valid | K138: 18.91 | N138: 12.24 | O138: 8.25 | P138: 29.61 | Q138: 18.91 | R138: 29.61 | S138: 18.91 | T138: 12.24 | U138: 8.25
A139: 2019 | B139: 10 | C139: 6 | D139: 17 | E139: 43744.70833 | F139: 11.04 | G139: Valid | H139: 8.3 | I139: 26.47 | J139: Valid | K139: 19.15 | N139: 11.04 | O139: 8.3 | P139: 26.47 | Q139: 19.15 | R139: 26.47 | S139: 19.15 | T139: 11.04 | U139: 8.3
A140: 2019 | B140: 10 | C140: 6 | D140: 18 | E140: 43744.75 | F140: 10.67 | G140: Valid | H140: 8.24 | I140: 32.33 | J140: Valid | K140: 19.62 | N140: 10.67 | O140: 8.24 | P140: 32.33 | Q140: 19.62 | R140: 32.33 | S140: 19.62 | T140: 10.67 | U140: 8.24
A141: 2019 | B141: 10 | C141: 6 | D141: 19 | E141: 43744.79167 | F141: 13.08 | G141: Valid | H141: 8.35 | I141: 34.94 | J141: Valid | K141: 20.23 | N141: 13.08 | O141: 8.35 | P141: 34.94 | Q141: 20.23 | R141: 34.94 | S141: 20.23 | T141: 13.08 | U141: 8.35
A142: 2019 | B142: 10 | C142: 6 | D142: 20 | E142: 43744.83333 | F142: 9.54 | G142: Valid | H142: 8.45 | I142: 36.21 | J142: Valid | K142: 20.48 | N142: 9.54 | O142: 8.45 | P142: 36.21 | Q142: 20.48 | R142: 36.21 | S142: 20.48 | T142: 9.54 | U142: 8.45
A143: 2019 | B143: 10 | C143: 6 | D143: 21 | E143: 43744.875 | F143: 9.52 | G143: Valid | H143: 8.57 | I143: 31.42 | J143: Valid | K143: 21.14 | N143: 9.52 | O143: 8.57 | P143: 31.42 | Q143: 21.14 | R143: 31.42 | S143: 21.14 | T143: 9.52 | U143: 8.57
A144: 2019 | B144: 10 | C144: 6 | D144: 22 | E144: 43744.91667 | F144: 9.07 | G144: Valid | H144: 8.81 | I144: 26.6 | J144: Valid | K144: 21.88 | N144: 9.07 | O144: 8.81 | P144: 26.6 | Q144: 21.88 | R144: 26.6 | S144: 21.88 | T144: 9.07 | U144: 8.81
A145: 2019 | B145: 10 | C145: 6 | D145: 23 | E145: 43744.95833 | F145: 8.2 | G145: Valid | H145: 8.97 | I145: 27.23 | J145: Valid | K145: 22.71 | N145: 8.2 | O145: 8.97 | P145: 27.23 | Q145: 22.71 | R145: 27.23 | S145: 22.71 | T145: 8.2 | U145: 8.97
A146: 2019 | B146: 10 | C146: 7 | D146: 0 | E146: 43745 | F146: 8.76 | G146: Valid | H146: 9.09 | I146: 33.35 | J146: Valid | K146: 23.69 | N146: 8.76 | O146: 9.09 | P146: 33.35 | Q146: 23.69 | R146: 33.35 | S146: 23.69 | T146: 8.76 | U146: 9.09
A147: 2019 | B147: 10 | C147: 7 | D147: 1 | E147: 43745.04167 | F147: 9.12 | G147: Valid | H147: 9.22 | I147: 37.82 | J147: Valid | K147: 24.79 | N147: 9.12 | O147: 9.22 | P147: 37.82 | Q147: 24.79 | R147: 37.82 | S147: 24.79 | T147: 9.12 | U147: 9.22
A148: 2019 | B148: 10 | C148: 7 | D148: 2 | E148: 43745.08333 | F148: 9.76 | G148: Valid | H148: 9.24 | I148: 29.63 | J148: Valid | K148: 24.99 | N148: 9.76 | O148: 9.24 | P148: 29.63 | Q148: 24.99 | R148: 29.63 | S148: 24.99 | T148: 9.76 | U148: 9.24
A149: 2019 | B149: 10 | C149: 7 | D149: 3 | E149: 43745.125 | F149: 7.02 | G149: Valid | H149: 9.27 | I149: 22.26 | J149: Valid | K149: 25.4 | N149: 7.02 | O149: 9.27 | P149: 22.26 | Q149: 25.4 | R149: 22.26 | S149: 25.4 | T149: 7.02 | U149: 9.27
A150: 2019 | B150: 10 | C150: 7 | D150: 4 | E150: 43745.16667 | F150: 3.02 | G150: Valid | H150: 9.19 | I150: 16.29 | J150: Valid | K150: 25.65 | N150: 3.02 | O150: 9.19 | P150: 16.29 | Q150: 25.65 | R150: 16.29 | S150: 25.65 | T150: 3.02 | U150: 9.19
A151: 2019 | B151: 10 | C151: 7 | D151: 5 | E151: 43745.20833 | F151: 3.27 | G151: Valid | H151: 9.01 | I151: 18.34 | J151: Valid | K151: 25.85 | N151: 3.27 | O151: 9.01 | P151: 18.34 | Q151: 25.85 | R151: 18.34 | S151: 25.85 | T151: 3.27 | U151: 9.01
A152: 2019 | B152: 10 | C152: 7 | D152: 6 | E152: 43745.25 | F152: 10.23 | G152: Valid | H152: 9.28 | I152: 25.54 | J152: Valid | K152: 26.58 | N152: 10.23 | O152: 9.28 | P152: 25.54 | Q152: 26.58 | R152: 25.54 | S152: 26.58 | T152: 10.23 | U152: 9.28
A153: 2019 | B153: 10 | C153: 7 | D153: 7 | E153: 43745.29167 | F153: 12.69 | G153: Valid | H153: 9.65 | I153: 28.19 | J153: Valid | K153: 27.19 | N153: 12.69 | O153: 9.65 | P153: 28.19 | Q153: 27.19 | R153: 28.19 | S153: 27.19 | T153: 12.69 | U153: 9.65
A154: 2019 | B154: 10 | C154: 7 | D154: 8 | E154: 43745.33333 | F154: 5.21 | G154: Valid | H154: 9.67 | I154: 26.63 | J154: Valid | K154: 27.54 | N154: 5.21 | O154: 9.67 | P154: 26.63 | Q154: 27.54 | R154: 26.63 | S154: 27.54 | T154: 5.21 | U154: 9.67
A155: 2019 | B155: =B154 -> 10 | C155: =C131+1 -> 7 | D155: 9 | E155: 43745.375 | F155: 9.6 | G155: Valid | H155: 9.79 | I155: 38.96 | J155: Valid | K155: 27.98 | N155: 9.6 | O155: 9.79 | P155: 38.96 | Q155: 27.98 | R155: 38.96 | S155: 27.98 | T155: 9.6 | U155: 9.79
A156: 2019 | B156: 10 | C156: 7 | D156: 10 | E156: 43745.41667 | F156: 10.36 | G156: Valid | H156: 9.82 | I156: 38.73 | J156: Valid | K156: 28.64 | N156: 10.36 | O156: 9.82 | P156: 38.73 | Q156: 28.64 | R156: 38.73 | S156: 28.64 | T156: 10.36 | U156: 9.82
A157: 2019 | B157: 10 | C157: 7 | D157: 11 | E157: 43745.45833 | F157: 8.48 | G157: Valid | H157: 9.73 | I157: 51.7 | J157: Valid | K157: 29.89 | N157: 8.48 | O157: 9.73 | P157: 51.7 | Q157: 29.89 | R157: 51.7 | S157: 29.89 | T157: 8.48 | U157: 9.73
A158: 2019 | B158: 10 | C158: 7 | D158: 12 | E158: 43745.5 | F158: 21.92 | G158: Valid | H158: 10.12 | I158: 153.43 | J158: Valid | K158: 35.34 | N158: 21.92 | O158: 10.12 | P158: 153.43 | Q158: 35.34 | R158: 153.43 | S158: 35.34 | T158: 21.92 | U158: 10.12
A159: 2019 | B159: 10 | C159: 7 | D159: 13 | E159: 43745.54167 | F159: 26.32 | G159: Valid | H159: 10.69 | I159: 323.79 | J159: Valid | K159: 47.71 | N159: 26.32 | O159: 10.69 | P159: 323.79 | Q159: 47.71 | R159: 323.79 | S159: 47.71 | T159: 26.32 | U159: 10.69
A160: 2019 | B160: 10 | C160: 7 | D160: 14 | E160: 43745.58333 | F160: 19.36 | G160: Valid | H160: 10.87 | I160: 259.36 | J160: Valid | K160: 57.32 | N160: 19.36 | O160: 10.87 | P160: 259.36 | Q160: 57.32 | R160: 259.36 | S160: 57.32 | T160: 19.36 | U160: 10.87
A161: 2019 | B161: 10 | C161: 7 | D161: 15 | E161: 43745.625 | F161: =NA() ->  | G161: Invalid | H161: =NA() ->  | I161: =NA() ->  | J161: Invalid | K161: =NA() ->  | L161: Power Failure | M161: machine outage and reset
A162: 2019 | B162: 10 | C162: 7 | D162: 16 | E162: 43745.66667 | F162: =NA() ->  | G162: Invalid | H162: =NA() ->  | I162: =NA() ->  | J162: Invalid | K162: =NA() ->  | L162: Power Failure | M162: machine outage and reset
A163: 2019 | B163: 10 | C163: 7 | D163: 17 | E163: 43745.70833 | F163: =NA() ->  | G163: Invalid | H163: =NA() ->  | I163: =NA() ->  | J163: Invalid | K163: =NA() ->  | L163: Power Failure | M163: machine outage and reset
A164: 2019 | B164: 10 | C164: 7 | D164: 18 | E164: 43745.75 | F164: =NA() ->  | G164: Invalid | H164: =NA() ->  | I164: =NA() ->  | J164: Invalid | K164: =NA() ->  | L164: Power Failure | M164: machine outage and reset
A165: 2019 | B165: 10 | C165: 7 | D165: 19 | E165: 43745.79167 | F165: =NA() ->  | G165: Invalid | H165: =NA() ->  | I165: =NA() ->  | J165: Invalid | K165: =NA() ->  | L165: Power Failure | M165: machine outage and reset
A166: 2019 | B166: 10 | C166: 7 | D166: 20 | E166: 43745.83333 | F166: 8.77 | G166: Valid | H166: 10.56 | I166: 41.13 | J166: Valid | K166: 64.76 | N166: 8.77 | O166: 10.56 | P166: 41.13 | Q166: 64.76 | R166: 41.13 | S166: 64.76 | T166: 8.77 | U166: 10.56
A167: 2019 | B167: 10 | C167: 7 | D167: 21 | E167: 43745.875 | F167: 9.47 | G167: Valid | H167: 10.56 | I167: 43.74 | J167: Valid | K167: 65.41 | N167: 9.47 | O167: 10.56 | P167: 43.74 | Q167: 65.41 | R167: 43.74 | S167: 65.41 | T167: 9.47 | U167: 10.56
A168: 2019 | B168: 10 | C168: 7 | D168: 22 | E168: 43745.91667 | F168: 7.53 | G168: Valid | H168: 10.48 | I168: 46.15 | J168: Valid | K168: 66.44 | N168: 7.53 | O168: 10.48 | P168: 46.15 | Q168: 66.44 | R168: 46.15 | S168: 66.44 | T168: 7.53 | U168: 10.48
A169: 2019 | B169: 10 | C169: 7 | D169: 23 | E169: 43745.95833 | F169: 9.68 | G169: Valid | H169: 10.56 | I169: 46.27 | J169: Valid | K169: 67.44 | N169: 9.68 | O169: 10.56 | P169: 46.27 | Q169: 67.44 | R169: 46.27 | S169: 67.44 | T169: 9.68 | U169: 10.56
A170: 2019 | B170: 10 | C170: 8 | D170: 0 | E170: 43746 | F170: 10.49 | G170: Valid | H170: 10.65 | I170: 50.26 | J170: Valid | K170: 68.33 | N170: 10.49 | O170: 10.65 | P170: 50.26 | Q170: 68.33 | R170: 50.26 | S170: 68.33 | T170: 10.49 | U170: 10.65
A171: 2019 | B171: 10 | C171: 8 | D171: 1 | E171: 43746.04167 | F171: 7.6 | G171: Valid | H171: 10.57 | I171: 44.24 | J171: Valid | K171: 68.67 | N171: 7.6 | O171: 10.57 | P171: 44.24 | Q171: 68.67 | R171: 44.24 | S171: 68.67 | T171: 7.6 | U171: 10.57
A172: 2019 | B172: 10 | C172: 8 | D172: 2 | E172: 43746.08333 | F172: 8.18 | G172: Valid | H172: 10.48 | I172: 45.55 | J172: Valid | K172: 69.5 | N172: 8.18 | O172: 10.48 | P172: 45.55 | Q172: 69.5 | R172: 45.55 | S172: 69.5 | T172: 8.18 | U172: 10.48
A173: 2019 | B173: 10 | C173: 8 | D173: 3 | E173: 43746.125 | F173: 12.1 | G173: Valid | H173: 10.75 | I173: 48.88 | J173: Valid | K173: 70.9 | N173: 12.1 | O173: 10.75 | P173: 48.88 | Q173: 70.9 | R173: 48.88 | S173: 70.9 | T173: 12.1 | U173: 10.75
A174: 2019 | B174: 10 | C174: 8 | D174: 4 | E174: 43746.16667 | F174: 3.71 | G174: Valid | H174: 10.79 | I174: 31.44 | J174: Valid | K174: 71.7 | N174: 3.71 | O174: 10.79 | P174: 31.44 | Q174: 71.7 | R174: 31.44 | S174: 71.7 | T174: 3.71 | U174: 10.79
A175: 2019 | B175: 10 | C175: 8 | D175: 5 | E175: 43746.20833 | F175: 5.14 | G175: Valid | H175: 10.89 | I175: 28.42 | J175: Valid | K175: 72.23 | N175: 5.14 | O175: 10.89 | P175: 28.42 | Q175: 72.23 | R175: 28.42 | S175: 72.23 | T175: 5.14 | U175: 10.89
A176: 2019 | B176: 10 | C176: 8 | D176: 6 | E176: 43746.25 | F176: 7.98 | G176: Valid | H176: 10.77 | I176: 30.5 | J176: Valid | K176: 72.49 | N176: 7.98 | O176: 10.77 | P176: 30.5 | Q176: 72.49 | R176: 30.5 | S176: 72.49 | T176: 7.98 | U176: 10.77
A177: 2019 | B177: 10 | C177: 8 | D177: 7 | E177: 43746.29167 | F177: 4.66 | G177: Valid | H177: 10.35 | I177: 23.36 | J177: Valid | K177: 72.24 | N177: 4.66 | O177: 10.35 | P177: 23.36 | Q177: 72.24 | R177: 23.36 | S177: 72.24 | T177: 4.66 | U177: 10.35
A178: 2019 | B178: 10 | C178: 8 | D178: 8 | E178: 43746.33333 | F178: 4.19 | G178: Valid | H178: 10.29 | I178: 26.49 | J178: Valid | K178: 72.23 | N178: 4.19 | O178: 10.29 | P178: 26.49 | Q178: 72.23 | R178: 26.49 | S178: 72.23 | T178: 4.19 | U178: 10.29
A179: 2019 | B179: 10 | C179: 8 | D179: 9 | E179: 43746.375 | F179: 8.38 | G179: Valid | H179: 10.23 | I179: 30.86 | J179: Valid | K179: 71.81 | N179: 8.38 | O179: 10.23 | P179: 30.86 | Q179: 71.81 | R179: 30.86 | S179: 71.81 | T179: 8.38 | U179: 10.23
A180: 2019 | B180: 10 | C180: 8 | D180: 10 | E180: 43746.41667 | F180: 8.65 | G180: Valid | H180: 10.14 | I180: 26.5 | J180: Valid | K180: 71.16 | N180: 8.65 | O180: 10.14 | P180: 26.5 | Q180: 71.16 | R180: 26.5 | S180: 71.16 | T180: 8.65 | U180: 10.14
A181: 2019 | B181: 10 | C181: 8 | D181: 11 | E181: 43746.45833 | F181: 2.62 | G181: Valid | H181: 9.83 | I181: 13.95 | J181: Valid | K181: 69.17 | N181: 2.62 | O181: 9.83 | P181: 13.95 | Q181: 69.17 | R181: 13.95 | S181: 69.17 | T181: 2.62 | U181: 9.83
A182: 2019 | B182: 10 | C182: 8 | D182: 12 | E182: 43746.5 | F182: 1.78 | G182: Valid | H182: 8.77 | I182: 16.03 | J182: Valid | K182: 61.94 | N182: 1.78 | O182: 8.77 | P182: 16.03 | Q182: 61.94 | R182: 16.03 | S182: 61.94 | T182: 1.78 | U182: 8.77
A183: 2019 | B183: 10 | C183: 8 | D183: 13 | E183: 43746.54167 | F183: 4.56 | G183: Valid | H183: 7.62 | I183: 29.43 | J183: Valid | K183: 46.45 | N183: 4.56 | O183: 7.62 | P183: 29.43 | Q183: 46.45 | R183: 29.43 | S183: 46.45 | T183: 4.56 | U183: 7.62
A184: 2019 | B184: 10 | C184: 8 | D184: 14 | E184: 43746.58333 | F184: 6.18 | G184: Valid | H184: 6.93 | I184: 33.91 | J184: Valid | K184: 34.58 | N184: 6.18 | O184: 6.93 | P184: 33.91 | Q184: 34.58 | R184: 33.91 | S184: 34.58 | T184: 6.18 | U184: 6.93
A185: 2019 | B185: 10 | C185: 8 | D185: 15 | E185: 43746.625 | F185: 7.33 | G185: Valid | H185: 6.95 | I185: 129.19 | J185: Valid | K185: 39.32 | N185: 7.33 | O185: 6.95 | P185: 129.19 | Q185: 39.32 | R185: 129.19 | S185: 39.32 | T185: 7.33 | U185: 6.95
A186: 2019 | B186: 10 | C186: 8 | D186: 16 | E186: 43746.66667 | F186: 7.25 | G186: Valid | H186: 6.96 | I186: 66.07 | J186: Valid | K186: 40.59 | N186: 7.25 | O186: 6.96 | P186: 66.07 | Q186: 40.59 | R186: 66.07 | S186: 40.59 | T186: 7.25 | U186: 6.96
A187: 2019 | B187: 10 | C187: 8 | D187: 17 | E187: 43746.70833 | F187: 8.55 | G187: Valid | H187: 7.04 | I187: 86.48 | J187: Valid | K187: 42.68 | N187: 8.55 | O187: 7.04 | P187: 86.48 | Q187: 42.68 | R187: 86.48 | S187: 42.68 | T187: 8.55 | U187: 7.04
A188: 2019 | B188: 10 | C188: 8 | D188: 18 | E188: 43746.75 | F188: 26.97 | G188: Valid | H188: 7.9 | I188: 352.88 | J188: Valid | K188: 56.16 | N188: 26.97 | O188: 7.9 | P188: 352.88 | Q188: 56.16 | R188: 352.88 | S188: 56.16 | T188: 26.97 | U188: 7.9
A189: 2019 | B189: 10 | C189: 8 | D189: 19 | E189: 43746.79167 | F189: 44.12 | G189: Valid | H189: 9.41 | I189: 576.46 | J189: Valid | K189: 77.84 | N189: 44.12 | O189: 9.41 | P189: 576.46 | Q189: 77.84 | R189: 576.46 | S189: 77.84 | T189: 44.12 | U189: 9.41
A190: 2019 | B190: 10 | C190: 8 | D190: 20 | E190: 43746.83333 | F190: 19.95 | G190: Valid | H190: 9.88 | I190: 243.66 | J190: Valid | K190: 86.28 | N190: 19.95 | O190: 9.88 | P190: 243.66 | Q190: 86.28 | R190: 243.66 | S190: 86.28 | T190: 19.95 | U190: 9.88
A191: 2019 | B191: 10 | C191: 8 | D191: 21 | E191: 43746.875 | F191: 12.33 | G191: Valid | H191: 10 | I191: 153.56 | J191: Valid | K191: 90.86 | N191: 12.33 | O191: 10 | P191: 153.56 | Q191: 90.86 | R191: 153.56 | S191: 90.86 | T191: 12.33 | U191: 10
A192: 2019 | B192: 10 | C192: 8 | D192: 22 | E192: 43746.91667 | F192: 15.22 | G192: Valid | H192: 10.32 | I192: 197.63 | J192: Valid | K192: 97.17 | N192: 15.22 | O192: 10.32 | P192: 197.63 | Q192: 97.17 | R192: 197.63 | S192: 97.17 | T192: 15.22 | U192: 10.32
A193: 2019 | B193: 10 | C193: 8 | D193: 23 | E193: 43746.95833 | F193: 11.94 | G193: Valid | H193: 10.41 | I193: 84.91 | J193: Valid | K193: 98.78 | N193: 11.94 | O193: 10.41 | P193: 84.91 | Q193: 98.78 | R193: 84.91 | S193: 98.78 | T193: 11.94 | U193: 10.41
A194: 2019 | B194: 10 | C194: 9 | D194: 0 | E194: 43747 | F194: 6.08 | G194: Valid | H194: 10.23 | I194: 51.72 | J194: Valid | K194: 98.84 | N194: =IF(G194="Valid", F194, NA()) -> 6.08 | O194: =IF(G194="Valid", H194, NA()) -> 10.23 | P194: =IF(J194="Valid", I194, NA()) -> 51.72 | Q194: =IF(J194="Valid", K194, NA()) -> 98.84 | R194: 51.72 | S194: 98.84 | T194: 6.08 | U194: 10.23
A195: 2019 | B195: 10 | C195: 9 | D195: 1 | E195: 43747.04167 | F195: 0.52 | G195: Valid | H195: 9.93 | I195: 34 | J195: Valid | K195: 98.41 | N195: 0.52 | O195: 9.93 | P195: 34 | Q195: 98.41 | R195: 34 | S195: 98.41 | T195: 0.52 | U195: 9.93
A196: =A195 -> 2019 | B196: 10 | C196: 9 | D196: =IF(D195=23,0,D195+1) -> 2 | E196: =E195+0.0416666666666666 -> 43747.08333 | F196: 3.41 | G196: Valid | H196: 9.73 | I196: 28.99 | J196: Valid | K196: 97.72 | N196: 3.41 | O196: 9.73 | P196: 28.99 | Q196: 97.72 | R196: 28.99 | S196: 97.72 | T196: 3.41 | U196: 9.73
A197: 2019 | B197: 10 | C197: 9 | D197: 3 | E197: 43747.125 | F197: 2.08 | G197: Valid | H197: 9.32 | I197: 27.57 | J197: Valid | K197: 96.83 | N197: 2.08 | O197: 9.32 | P197: 27.57 | Q197: 96.83 | R197: 27.57 | S197: 96.83 | T197: 2.08 | U197: 9.32
A198: 2019 | B198: 10 | C198: 9 | D198: 4 | E198: 43747.16667 | F198: 2.76 | G198: Valid | H198: 9.28 | I198: 29.4 | J198: Valid | K198: 96.75 | N198: 2.76 | O198: 9.28 | P198: 29.4 | Q198: 96.75 | R198: 29.4 | S198: 96.75 | T198: 2.76 | U198: 9.28
A199: 2019 | B199: 10 | C199: 9 | D199: 5 | E199: 43747.20833 | F199: 5.87 | G199: Valid | H199: 9.31 | I199: 33.15 | J199: Valid | K199: 96.95 | N199: 5.87 | O199: 9.31 | P199: 33.15 | Q199: 96.95 | R199: 33.15 | S199: 96.95 | T199: 5.87 | U199: 9.31
A200: 2019 | B200: 10 | C200: 9 | D200: 6 | E200: 43747.25 | F200: 0.66 | G200: Valid | H200: 9 | I200: 22.95 | J200: Valid | K200: 96.63 | N200: 0.66 | O200: 9 | P200: 22.95 | Q200: 96.63 | R200: 22.95 | S200: 96.63 | T200: 0.66 | U200: 9
... 545 more rows

Sheet Raw data_format
A1: Parameter | B1: Format | C1: Comment | D1: Units of measure | E1: Minimum | F1: Maximum
A2: Year | B2: yyyy | C2: 4 integer format | D2: Not applicable | E2: 2015 | F2: Until reporting ceases
A3: Month | B3: mm | C3: 2 integer format | D3: Not applicable | E3: 1 | F3: 12
A4: Day | B4: dd | C4: 2 integer format | D4: Not applicable | E4: 1 | F4: 31
A5: Hour | B5: hh | C5: 2 integer format | D5: Not applicable | E5: 0 | F5: 23
A6: PM10 | B6: 0 | C6: 1 decimal place resolution | D6: µg/m3 | E6: Negative | F6: Instrument specific
A7: PM2.5 | B7: 0 | C7: 2 decimal place resolution | D7: µg/m3 | E7: Negative | F7: Instrument specific
A8: Status | B8: Text | C8: 7 character format | D8: Not applicable | E8: Valid | F8: Invalid
